[Event "*** Titled Tuesday Blitz"]
[Site "Chess.com"]
[Date "2021.04.06"]
[Round "9"]
[White "AlexPapasimakopoulos"]
[Black "XDPS"]
[Result "1-0"]
[WhiteElo "2643"]
[BlackElo "2736"]
[TimeControl "180+1"]
[EndTime "11:45:42 PDT"]
[Termination "AlexPapasimakopoulos won on time"]

1. d4 {[%clk 0:02:55.8]} 1... d5 {[%clk 0:02:59.5]} 2. c4 {[%clk 0:02:55.9]}
2... e6 {[%clk 0:02:59.8]} 3. Nc3 {[%clk 0:02:56.4]} 3... Nf6 {[%clk 0:02:59.5]}
4. cxd5 {[%clk 0:02:57]} 4... exd5 {[%clk 0:03:00.4]} 5. Bg5 {[%clk 0:02:57.2]}
5... c6 {[%clk 0:03:00.8]} 6. e3 {[%clk 0:02:57.5]} 6... h6 {[%clk 0:03:01.4]}
7. Bh4 {[%clk 0:02:57.4]} 7... Bd6 {[%clk 0:03:02]} 8. Bd3 {[%clk 0:02:57.7]}
8... O-O {[%clk 0:03:02.3]} 9. Qc2 {[%clk 0:02:58.1]} 9... Re8 {[%clk
0:03:02.7]} 10. Nge2 {[%clk 0:02:58.4]} 10... a5 {[%clk 0:03:03.3]} 11. Bg3
{[%clk 0:02:54]} 11... Na6 {[%clk 0:03:03]} 12. a3 {[%clk 0:02:53.6]} 12... Nc7
{[%clk 0:03:03]} 13. O-O {[%clk 0:02:53.4]} 13... Ne6 {[%clk 0:02:59.8]} 14. f3
{[%clk 0:02:42.6]} 14... b5 {[%clk 0:02:11.3]} 15. Bxd6 {[%clk 0:02:37.8]} 15...
Qxd6 {[%clk 0:02:11.2]} 16. Ng3 {[%clk 0:02:38.7]} 16... Bb7 {[%clk 0:02:03.7]}
17. Nf5 {[%clk 0:02:20.6]} 17... Qf8 {[%clk 0:02:01.3]} 18. Rad1 {[%clk
0:02:06.2]} 18... Rac8 {[%clk 0:01:54.4]} 19. Qf2 {[%clk 0:01:58.7]} 19... g6
{[%clk 0:01:49]} 20. Qh4 {[%clk 0:01:46.7]} 20... Nh5 {[%clk 0:01:39.1]} 21. g4
{[%clk 0:01:36.2]} 21... gxf5 {[%clk 0:01:38.8]} 22. Qxh5 {[%clk 0:01:31.3]}
22... fxg4 {[%clk 0:01:30.5]} 23. Kh1 {[%clk 0:01:31.4]} 23... Ng5 {[%clk
0:00:35.7]} 24. Bf5 {[%clk 0:01:10]} 24... Rxe3 {[%clk 0:00:31.5]} 25. Qxg4
{[%clk 0:00:59.6]} 25... Kh8 {[%clk 0:00:28.6]} 26. f4 {[%clk 0:00:55]} 26...
Ne6 {[%clk 0:00:21.1]} 27. Rg1 {[%clk 0:00:45.7]} 27... b4 {[%clk 0:00:20.9]}
28. axb4 {[%clk 0:00:37.9]} 28... axb4 {[%clk 0:00:20.5]} 29. Na4 {[%clk
0:00:36.6]} 29... Ba6 {[%clk 0:00:14.7]} 30. Rg2 {[%clk 0:00:29.4]} 30... Re8
{[%clk 0:00:07.5]} 31. Qh4 {[%clk 0:00:25]} 31... f6 {[%clk 0:00:01.5]} 32. Rdg1
{[%clk 0:00:18.9]} 1-0

[Event "*** Titled Tuesday Blitz"]
[Site "Chess.com"]
[Date "2021.04.06"]
[Round "9"]
[White "SanchezKelvin"]
[Black "Nachsueb"]
[Result "1-0"]
[WhiteElo "2493"]
[BlackElo "2190"]
[TimeControl "180+1"]
[EndTime "11:45:43 PDT"]
[Termination "SanchezKelvin won by resignation"]

1. e4 {[%clk 0:03:00.9]} 1... c5 {[%clk 0:00:09.2]} 2. Nf3 {[%clk 0:02:58.3]}
2... e6 {[%clk 0:00:09.9]} 3. d4 {[%clk 0:02:58.3]} 3... cxd4 {[%clk 0:00:10.8]}
4. Nxd4 {[%clk 0:02:59.2]} 4... Nc6 {[%clk 0:00:11.7]} 5. Nxc6 {[%clk
0:02:58.7]} 5... bxc6 {[%clk 0:00:11.6]} 6. Bd3 {[%clk 0:02:58.5]} 6... Qc7
{[%clk 0:00:11.9]} 7. O-O {[%clk 0:02:59.4]} 7... d5 {[%clk 0:00:12.5]} 8. Nc3
{[%clk 0:02:58.8]} 8... Nf6 {[%clk 0:00:12.5]} 9. f4 {[%clk 0:02:57.9]} 9... Be7
{[%clk 0:00:12.9]} 10. b3 {[%clk 0:02:53.3]} 10... O-O {[%clk 0:00:12.9]} 11.
Bb2 {[%clk 0:02:53.2]} 11... a5 {[%clk 0:00:13.4]} 12. Qe2 {[%clk 0:02:51.9]}
12... Ba6 {[%clk 0:00:13.8]} 13. Bxa6 {[%clk 0:02:50.7]} 13... Qb6+ {[%clk
0:00:13.3]} 14. Kh1 {[%clk 0:02:48.1]} 14... Qxa6 {[%clk 0:00:14]} 15. Qxa6
{[%clk 0:02:46.5]} 15... Rxa6 {[%clk 0:00:14.9]} 16. e5 {[%clk 0:02:45.3]} 16...
Nd7 {[%clk 0:00:14.9]} 17. Na4 {[%clk 0:02:45.4]} 17... c5 {[%clk 0:00:14.8]}
18. Rad1 {[%clk 0:02:40.4]} 18... Rc6 {[%clk 0:00:14.8]} 19. f5 {[%clk
0:02:39.6]} 19... Nb6 {[%clk 0:00:14]} 20. f6 {[%clk 0:02:37.4]} 20... Bd8
{[%clk 0:00:13.1]} 21. Nc3 {[%clk 0:02:36.5]} 21... g6 {[%clk 0:00:12.7]} 22. a4
{[%clk 0:02:35.3]} 22... Nd7 {[%clk 0:00:12.7]} 23. Nb5 {[%clk 0:02:34.2]} 23...
Bc7 {[%clk 0:00:10.8]} 24. Nxc7 {[%clk 0:02:31.4]} 24... Rxc7 {[%clk 0:00:11.7]}
25. Rfe1 {[%clk 0:02:31.4]} 25... Rb8 {[%clk 0:00:12]} 26. Bc3 {[%clk 0:02:31]}
26... c4 {[%clk 0:00:12.3]} 27. Bxa5 {[%clk 0:02:30.8]} 27... Ra7 {[%clk
0:00:12.8]} 28. b4 {[%clk 0:02:31.1]} 28... Nc5 {[%clk 0:00:12.6]} 29. Ra1
{[%clk 0:02:28.1]} 29... Ne4 {[%clk 0:00:12.9]} 30. Kg1 {[%clk 0:02:26.8]} 30...
Nc3 {[%clk 0:00:12.4]} 31. Ra3 {[%clk 0:02:17.9]} 31... Ne4 {[%clk 0:00:11.5]}
32. Rd1 {[%clk 0:02:14.9]} 32... Kf8 {[%clk 0:00:11.9]} 33. c3 {[%clk
0:02:14.5]} 33... Ke8 {[%clk 0:00:12.2]} 34. Kf1 {[%clk 0:02:14]} 34... Kd7
{[%clk 0:00:12.5]} 35. Ke2 {[%clk 0:02:14.1]} 35... h5 {[%clk 0:00:11.9]} 36.
Ke3 {[%clk 0:02:14.2]} 36... Ng5 {[%clk 0:00:11.3]} 37. Kd4 {[%clk 0:02:13.1]}
37... Ne4 {[%clk 0:00:11.6]} 38. Ra2 {[%clk 0:02:10.7]} 38... Rba8 {[%clk
0:00:11]} 39. Re2 {[%clk 0:02:08.5]} 39... Rb8 {[%clk 0:00:11]} 40. Rxe4 {[%clk
0:02:08]} 40... dxe4 {[%clk 0:00:11]} 41. Kxe4+ {[%clk 0:02:08.2]} 41... Kc6
{[%clk 0:00:11.3]} 42. Rd4 {[%clk 0:02:08]} 42... Rd7 {[%clk 0:00:10.4]} 43.
Rxc4+ {[%clk 0:02:07.9]} 43... Kb7 {[%clk 0:00:10.5]} 44. b5 {[%clk 0:02:03.8]}
44... Rc8 {[%clk 0:00:10.8]} 45. Rxc8 {[%clk 0:02:03.5]} 45... Kxc8 {[%clk
0:00:11.7]} 46. Bb4 {[%clk 0:02:01.4]} 46... Kb7 {[%clk 0:00:12]} 47. Bd6 {[%clk
0:02:00]} 47... Kb6 {[%clk 0:00:12.2]} 48. c4 {[%clk 0:02:00.5]} 48... Ra7
{[%clk 0:00:12.6]} 49. c5+ {[%clk 0:01:58.9]} 49... Kb7 {[%clk 0:00:13]} 50. c6+
{[%clk 0:01:57.4]} 50... Kb6 {[%clk 0:00:13]} 51. c7 {[%clk 0:01:51.9]} 51...
Rxa4+ {[%clk 0:00:13.9]} 52. Kd3 {[%clk 0:01:49]} 52... Kb7 {[%clk 0:00:14.4]}
53. b6 {[%clk 0:01:48.7]} 53... Ra6 {[%clk 0:00:13.6]} 54. Bc5 {[%clk
0:01:48.9]} 54... Ra5 {[%clk 0:00:14]} 55. Kc4 {[%clk 0:01:48.4]} 55... Ra4+
{[%clk 0:00:14.2]} 56. Kb5 {[%clk 0:01:48.1]} 56... Ra1 {[%clk 0:00:14]} 57.
c8=Q+ {[%clk 0:01:47.5]} 57... Kxc8 {[%clk 0:00:14]} 58. Kc6 {[%clk 0:01:48.4]}
58... Rb1 {[%clk 0:00:13.5]} 59. Kd6 {[%clk 0:01:46.1]} 59... Rd1+ {[%clk
0:00:11.7]} 60. Ke7 {[%clk 0:01:44.9]} 60... Rd7+ {[%clk 0:00:11.8]} 61. Kf8
{[%clk 0:01:44.6]} 61... Rb7 {[%clk 0:00:12.1]} 62. h4 {[%clk 0:01:42.7]} 62...
Kd8 {[%clk 0:00:10.6]} 63. Be7+ {[%clk 0:01:41.4]} 63... Kd7 {[%clk 0:00:10.8]}
64. Kxf7 {[%clk 0:01:41.6]} 64... Rxb6 {[%clk 0:00:11.3]} 65. Kxg6 {[%clk
0:01:41.9]} 65... Ke8 {[%clk 0:00:11.7]} 66. Kg7 {[%clk 0:01:41]} 66... Rb2
{[%clk 0:00:10.4]} 67. f7+ {[%clk 0:01:39.8]} 67... Kxe7 {[%clk 0:00:10.6]} 68.
f8=Q+ {[%clk 0:01:40]} 1-0

[Event "*** Titled Tuesday Blitz"]
[Site "Chess.com"]
[Date "2021.04.06"]
[Round "9"]
[White "fearless_guy"]
[Black "Beca95"]
[Result "0-1"]
[WhiteElo "2794"]
[BlackElo "2923"]
[TimeControl "180+1"]
[EndTime "11:45:44 PDT"]
[Termination "Beca95 won on time"]

1. e4 {[%clk 0:02:57.9]} 1... e5 {[%clk 0:02:59.5]} 2. Nf3 {[%clk 0:02:56.7]}
2... Nc6 {[%clk 0:02:59.8]} 3. d4 {[%clk 0:02:56.9]} 3... exd4 {[%clk
0:02:59.1]} 4. Nxd4 {[%clk 0:02:57.8]} 4... Nf6 {[%clk 0:02:55.7]} 5. Nxc6
{[%clk 0:02:57.2]} 5... bxc6 {[%clk 0:02:56.6]} 6. Qe2 {[%clk 0:02:57.2]} 6...
d5 {[%clk 0:02:45.8]} 7. exd5+ {[%clk 0:02:58.1]} 7... Be7 {[%clk 0:02:44.3]} 8.
dxc6 {[%clk 0:02:58.8]} 8... O-O {[%clk 0:02:43.8]} 9. Qd2 {[%clk 0:02:58.5]}
9... Bd6 {[%clk 0:02:39.2]} 10. Nc3 {[%clk 0:02:55.1]} 10... Re8+ {[%clk
0:02:38.6]} 11. Be2 {[%clk 0:02:54.9]} 11... Rb8 {[%clk 0:02:11.3]} 12. O-O
{[%clk 0:02:45.3]} 12... Rb4 {[%clk 0:02:10.7]} 13. g3 {[%clk 0:02:21.2]} 13...
Bh3 {[%clk 0:02:06.3]} 14. Rd1 {[%clk 0:02:19.5]} 14... Qe7 {[%clk 0:01:57.6]}
15. Qe3 {[%clk 0:01:52.6]} 15... Qf8 {[%clk 0:01:52.3]} 16. Qd3 {[%clk 0:01:46]}
16... Bc5 {[%clk 0:01:42.9]} 17. Bg5 {[%clk 0:01:27.7]} 17... Ng4 {[%clk
0:00:56.5]} 18. Bxg4 {[%clk 0:01:13.8]} 18... Rxg4 {[%clk 0:00:54.2]} 19. Bf4
{[%clk 0:00:53.5]} 19... h5 {[%clk 0:00:53.5]} 20. Bxc7 {[%clk 0:00:46.2]} 20...
h4 {[%clk 0:00:53.7]} 21. Bd6 {[%clk 0:00:43.7]} 21... Bxd6 {[%clk 0:00:53.2]}
22. Qf3 {[%clk 0:00:24.4]} 22... Rg6 {[%clk 0:00:50.2]} 23. Rd4 {[%clk 0:00:21]}
23... Rge6 {[%clk 0:00:37.8]} 24. Re4 {[%clk 0:00:12.4]} 24... Qe7 {[%clk
0:00:37]} 25. Rae1 {[%clk 0:00:11.7]} 25... Qf6 {[%clk 0:00:33.5]} 26. Qxf6
{[%clk 0:00:09.3]} 26... gxf6 {[%clk 0:00:34.4]} 27. g4 {[%clk 0:00:07.1]} 27...
f5 {[%clk 0:00:34.3]} 28. Rxe6 {[%clk 0:00:05.4]} 28... fxe6 {[%clk 0:00:34.5]}
29. f3 {[%clk 0:00:04.7]} 29... fxg4 {[%clk 0:00:34.2]} 30. Ne4 {[%clk
0:00:05.5]} 30... Be7 {[%clk 0:00:33.6]} 31. c7 {[%clk 0:00:05.6]} 31... Rc8
{[%clk 0:00:33.3]} 32. Nf2 {[%clk 0:00:06.3]} 32... Bc5 {[%clk 0:00:33.3]} 33.
Rxe6 {[%clk 0:00:05.1]} 33... g3 {[%clk 0:00:30.7]} 34. Rg6+ {[%clk 0:00:01.7]}
34... Kf7 {[%clk 0:00:30.8]} 0-1

[Event "*** Titled Tuesday Blitz"]
[Site "Chess.com"]
[Date "2021.04.06"]
[Round "9"]
[White "Supernotar"]
[Black "Byniolus"]
[Result "1-0"]
[WhiteElo "2715"]
[BlackElo "2866"]
[TimeControl "180+1"]
[EndTime "11:45:46 PDT"]
[Termination "Supernotar won on time"]

1. d4 {[%clk 0:03:00.9]} 1... d6 {[%clk 0:02:58.8]} 2. c4 {[%clk 0:03:00.8]}
2... e5 {[%clk 0:02:59]} 3. Nc3 {[%clk 0:03:01.1]} 3... exd4 {[%clk 0:02:59.1]}
4. Qxd4 {[%clk 0:03:02]} 4... Nc6 {[%clk 0:02:59.8]} 5. Qd2 {[%clk 0:03:02.1]}
5... Nf6 {[%clk 0:02:57.4]} 6. b3 {[%clk 0:03:02.3]} 6... a5 {[%clk 0:02:57.6]}
7. Bb2 {[%clk 0:03:02]} 7... a4 {[%clk 0:02:57.8]} 8. Rc1 {[%clk 0:03:02.1]}
8... axb3 {[%clk 0:02:53]} 9. axb3 {[%clk 0:03:03]} 9... Bf5 {[%clk 0:02:43.7]}
10. Nf3 {[%clk 0:02:59.4]} 10... Be7 {[%clk 0:02:14.8]} 11. g3 {[%clk
0:02:59.5]} 11... Bg6 {[%clk 0:02:05.6]} 12. Bg2 {[%clk 0:02:57.6]} 12... O-O
{[%clk 0:01:56.9]} 13. O-O {[%clk 0:02:57.4]} 13... Re8 {[%clk 0:01:57]} 14. Nd4
{[%clk 0:02:48.9]} 14... Nxd4 {[%clk 0:01:45.1]} 15. Qxd4 {[%clk 0:02:48.2]}
15... c6 {[%clk 0:01:42.2]} 16. Rfd1 {[%clk 0:02:46.2]} 16... Bf8 {[%clk
0:01:39.1]} 17. e3 {[%clk 0:02:42.9]} 17... h6 {[%clk 0:01:37.9]} 18. Rd2 {[%clk
0:02:34.7]} 18... Qc7 {[%clk 0:01:31.1]} 19. Rcd1 {[%clk 0:02:26.9]} 19... Qa5
{[%clk 0:01:11.2]} 20. Na4 {[%clk 0:01:37.3]} 20... Ne4 {[%clk 0:01:07.9]} 21.
Re2 {[%clk 0:01:31.3]} 21... Qb4 {[%clk 0:00:53.3]} 22. Nb6 {[%clk 0:01:06.3]}
22... Ra2 {[%clk 0:00:43.6]} 23. Nd7 {[%clk 0:00:59.9]} 23... Qxb3 {[%clk
0:00:31.8]} 24. Nxf8 {[%clk 0:00:54.5]} 24... Kxf8 {[%clk 0:00:19.8]} 25. Bxe4
{[%clk 0:00:38.3]} 25... Rxe4 {[%clk 0:00:13.8]} 26. Qxg7+ {[%clk 0:00:31.8]}
26... Ke8 {[%clk 0:00:09.7]} 27. Rxd6 {[%clk 0:00:22.4]} 27... Qb6 {[%clk
0:00:05.5]} 28. c5 {[%clk 0:00:12.7]} 28... Qa5 {[%clk 0:00:04.7]} 29. Bc3
{[%clk 0:00:10.1]} 29... Qa6 {[%clk 0:00:01.2]} 30. Qg8+ {[%clk 0:00:08.1]} 1-0

[Event "*** Titled Tuesday Blitz"]
[Site "Chess.com"]
[Date "2021.04.06"]
[Round "9"]
[White "fabianvivasz"]
[Black "annamaja"]
[Result "1-0"]
[WhiteElo "2400"]
[BlackElo "2265"]
[TimeControl "180+1"]
[EndTime "11:45:47 PDT"]
[Termination "fabianvivasz won by checkmate"]

1. e4 {[%clk 0:02:21.6]} 1... e6 {[%clk 0:02:57.7]} 2. d4 {[%clk 0:02:20.3]}
2... d5 {[%clk 0:02:58.1]} 3. Nd2 {[%clk 0:02:19.4]} 3... Nf6 {[%clk 0:02:58.4]}
4. e5 {[%clk 0:02:19]} 4... Nfd7 {[%clk 0:02:58.5]} 5. Ngf3 {[%clk 0:02:18.6]}
5... c5 {[%clk 0:02:58.6]} 6. c3 {[%clk 0:02:19.3]} 6... Nc6 {[%clk 0:02:58.8]}
7. Bd3 {[%clk 0:02:19.5]} 7... Qb6 {[%clk 0:02:52.9]} 8. O-O {[%clk 0:02:15.7]}
8... Be7 {[%clk 0:02:45.9]} 9. Re1 {[%clk 0:02:02.5]} 9... O-O {[%clk
0:02:41.7]} 10. Nf1 {[%clk 0:01:57.9]} 10... f6 {[%clk 0:02:31.9]} 11. exf6
{[%clk 0:01:40.7]} 11... Nxf6 {[%clk 0:02:26.6]} 12. a3 {[%clk 0:00:55]} 12...
Kh8 {[%clk 0:02:15.9]} 13. h3 {[%clk 0:00:31.3]} 13... cxd4 {[%clk 0:02:12.1]}
14. cxd4 {[%clk 0:00:26.5]} 14... Nxd4 {[%clk 0:02:11.1]} 15. Nxd4 {[%clk
0:00:18.7]} 15... Qxd4 {[%clk 0:02:12]} 16. Be3 {[%clk 0:00:18]} 16... Qxb2
{[%clk 0:02:09.1]} 17. Re2 {[%clk 0:00:07.3]} 17... Qc3 {[%clk 0:02:00.1]} 18.
Rc2 {[%clk 0:00:05.9]} 18... Qa5 {[%clk 0:01:55.1]} 19. Bd4 {[%clk 0:00:03.6]}
19... Ne4 {[%clk 0:01:35.8]} 20. Ng3 {[%clk 0:00:02.8]} 20... Nxg3 {[%clk
0:01:11.1]} 21. fxg3 {[%clk 0:00:03.7]} 21... Bf6 {[%clk 0:01:11.6]} 22. Qh5
{[%clk 0:00:03.8]} 22... Bxd4+ {[%clk 0:01:08.3]} 23. Kh2 {[%clk 0:00:03.3]}
23... h6 {[%clk 0:01:00.6]} 24. Qg6 {[%clk 0:00:02.9]} 24... Kg8 {[%clk
0:00:59.7]} 25. Qh7+ {[%clk 0:00:03.1]} 25... Kf7 {[%clk 0:01:00.1]} 26. Rf1+
{[%clk 0:00:03.3]} 26... Bf6 {[%clk 0:00:59.6]} 27. Bg6+ {[%clk 0:00:02.4]}
27... Ke7 {[%clk 0:00:58.2]} 28. Rxf6 {[%clk 0:00:02.4]} 28... Rxf6 {[%clk
0:00:39.7]} 29. Qxg7+ {[%clk 0:00:02.3]} 29... Kd6 {[%clk 0:00:40.2]} 30. Qxf6
{[%clk 0:00:02.5]} 30... Bd7 {[%clk 0:00:31.4]} 31. Qf4+ {[%clk 0:00:02.5]}
31... Ke7 {[%clk 0:00:25.4]} 32. Qxh6 {[%clk 0:00:03.1]} 32... Qe1 {[%clk
0:00:14.6]} 33. Qg5+ {[%clk 0:00:03.2]} 33... Kd6 {[%clk 0:00:13.4]} 34. Qf4+
{[%clk 0:00:03.1]} 34... Qe5 {[%clk 0:00:13.9]} 35. Qb4# {[%clk 0:00:03]} 1-0

[Event "*** Titled Tuesday Blitz"]
[Site "Chess.com"]
[Date "2021.04.06"]
[Round "9"]
[White "gmgamil"]
[Black "rquery98"]
[Result "1-0"]
[WhiteElo "2815"]
[BlackElo "2662"]
[TimeControl "180+1"]
[EndTime "11:45:49 PDT"]
[Termination "gmgamil won by resignation"]

1. d4 {[%clk 0:03:00.9]} 1... Nf6 {[%clk 0:02:56.9]} 2. Nc3 {[%clk 0:03:01.8]}
2... d5 {[%clk 0:02:54.3]} 3. Bg5 {[%clk 0:03:02.3]} 3... h6 {[%clk 0:02:52]} 4.
Bh4 {[%clk 0:03:01.1]} 4... e6 {[%clk 0:02:51.6]} 5. f3 {[%clk 0:02:54.9]} 5...
Be7 {[%clk 0:02:49.4]} 6. e3 {[%clk 0:02:47.4]} 6... c5 {[%clk 0:02:47.6]} 7.
dxc5 {[%clk 0:02:46]} 7... Bxc5 {[%clk 0:02:41.1]} 8. Bf2 {[%clk 0:02:41.9]}
8... Nc6 {[%clk 0:02:36]} 9. Qd2 {[%clk 0:02:40.1]} 9... Qe7 {[%clk 0:02:16.3]}
10. O-O-O {[%clk 0:02:36.6]} 10... a6 {[%clk 0:02:15.8]} 11. Nge2 {[%clk
0:02:25.5]} 11... b5 {[%clk 0:02:09.5]} 12. Nd4 {[%clk 0:02:22]} 12... Bb7
{[%clk 0:02:02.5]} 13. Kb1 {[%clk 0:02:16.3]} 13... Ne5 {[%clk 0:01:59.2]} 14.
Nb3 {[%clk 0:01:49.9]} 14... Bb6 {[%clk 0:01:41.7]} 15. e4 {[%clk 0:01:48.2]}
15... Bxf2 {[%clk 0:01:41.8]} 16. Qxf2 {[%clk 0:01:44.4]} 16... dxe4 {[%clk
0:01:37.9]} 17. Na5 {[%clk 0:01:37.1]} 17... exf3 {[%clk 0:01:25.8]} 18. Nxb7
{[%clk 0:01:36.7]} 18... Qxb7 {[%clk 0:01:26.7]} 19. Qg3 {[%clk 0:01:36.6]}
19... Ng6 {[%clk 0:01:06.5]} 20. gxf3 {[%clk 0:01:35]} 20... O-O {[%clk
0:01:05.6]} 21. Bd3 {[%clk 0:01:35.6]} 21... Nh5 {[%clk 0:00:46.5]} 22. Qg4
{[%clk 0:01:33.6]} 22... Nf6 {[%clk 0:00:44.8]} 23. Qg3 {[%clk 0:01:30.2]} 23...
Nh5 {[%clk 0:00:43.9]} 24. Qg4 {[%clk 0:01:28.1]} 24... Nf6 {[%clk 0:00:41.4]}
25. Qg1 {[%clk 0:01:15.5]} 25... Nf4 {[%clk 0:00:40.9]} 26. Ne4 {[%clk
0:01:12.5]} 26... N6d5 {[%clk 0:00:33.4]} 27. Qg3 {[%clk 0:01:08.7]} 27... f5
{[%clk 0:00:31.9]} 28. Nc5 {[%clk 0:00:59.5]} 28... Qc7 {[%clk 0:00:29.4]} 29.
Rhg1 {[%clk 0:00:53.5]} 29... Nxd3 {[%clk 0:00:22.4]} 30. Rxd3 {[%clk
0:00:52.5]} 30... Qxg3 {[%clk 0:00:21.3]} 31. hxg3 {[%clk 0:00:53]} 31... Rfe8
{[%clk 0:00:22.1]} 32. Nxe6 {[%clk 0:00:51.7]} 32... Rxe6 {[%clk 0:00:23]} 33.
Rxd5 {[%clk 0:00:51.9]} 33... Rae8 {[%clk 0:00:20.4]} 34. b3 {[%clk 0:00:52.4]}
34... g6 {[%clk 0:00:20.5]} 35. g4 {[%clk 0:00:50.7]} 35... Re1+ {[%clk
0:00:19.9]} 36. Rxe1 {[%clk 0:00:50.4]} 36... Rxe1+ {[%clk 0:00:20.8]} 37. Kb2
{[%clk 0:00:51.2]} 37... fxg4 {[%clk 0:00:21.6]} 38. fxg4 {[%clk 0:00:51]} 38...
Rg1 {[%clk 0:00:21.5]} 39. Rd4 {[%clk 0:00:50.6]} 39... Kg7 {[%clk 0:00:21.3]}
40. a4 {[%clk 0:00:50.4]} 40... bxa4 {[%clk 0:00:20.7]} 41. Rxa4 {[%clk
0:00:51.3]} 41... Rg2 {[%clk 0:00:19.7]} 42. Rxa6 {[%clk 0:00:45.5]} 42... Rxg4
{[%clk 0:00:19.2]} 43. c4 {[%clk 0:00:46.4]} 43... h5 {[%clk 0:00:19.7]} 44. c5
{[%clk 0:00:46.9]} 44... h4 {[%clk 0:00:20.3]} 45. Ra1 {[%clk 0:00:47.5]} 45...
Rg5 {[%clk 0:00:20.2]} 46. b4 {[%clk 0:00:47.3]} 46... Kf7 {[%clk 0:00:20.5]}
47. Re1 {[%clk 0:00:45.1]} 47... Rh5 {[%clk 0:00:19.2]} 48. c6 {[%clk
0:00:45.2]} 48... h3 {[%clk 0:00:18.2]} 49. c7 {[%clk 0:00:45.4]} 49... Rh8
{[%clk 0:00:18.9]} 50. b5 {[%clk 0:00:46]} 50... h2 {[%clk 0:00:13.9]} 51. b6
{[%clk 0:00:46.2]} 51... g5 {[%clk 0:00:12.3]} 52. b7 {[%clk 0:00:45.9]} 1-0

[Event "*** Titled Tuesday Blitz"]
[Site "Chess.com"]
[Date "2021.04.06"]
[Round "9"]
[White "DinaBelenkaya"]
[Black "LileKoridze"]
[Result "1-0"]
[WhiteElo "2370"]
[BlackElo "2444"]
[TimeControl "180+1"]
[EndTime "11:45:52 PDT"]
[Termination "DinaBelenkaya won by resignation"]

1. e4 {[%clk 0:03:00.9]} 1... c5 {[%clk 0:02:53.8]} 2. Nc3 {[%clk 0:03:00]} 2...
Nc6 {[%clk 0:02:51.2]} 3. g3 {[%clk 0:02:56.5]} 3... a6 {[%clk 0:02:50.5]} 4.
Bg2 {[%clk 0:02:55.9]} 4... d6 {[%clk 0:02:42.2]} 5. Nge2 {[%clk 0:02:56.8]}
5... Nf6 {[%clk 0:02:39.2]} 6. d3 {[%clk 0:02:55.9]} 6... g6 {[%clk 0:02:36.4]}
7. Be3 {[%clk 0:02:54.8]} 7... Bg7 {[%clk 0:02:30.9]} 8. h3 {[%clk 0:02:50.8]}
8... O-O {[%clk 0:02:30.5]} 9. Qd2 {[%clk 0:02:50.5]} 9... Rb8 {[%clk
0:02:27.4]} 10. Bh6 {[%clk 0:02:48.7]} 10... b5 {[%clk 0:02:25.4]} 11. h4 {[%clk
0:02:41.7]} 11... b4 {[%clk 0:02:18]} 12. Nd5 {[%clk 0:02:40.2]} 12... Nxd5
{[%clk 0:01:43.8]} 13. exd5 {[%clk 0:02:39]} 13... Ne5 {[%clk 0:01:43.3]} 14. h5
{[%clk 0:02:28.6]} 14... Bxh6 {[%clk 0:01:38.6]} 15. Qxh6 {[%clk 0:02:29.5]}
15... Ng4 {[%clk 0:01:39.1]} 16. Qd2 {[%clk 0:02:28.2]} 16... Kg7 {[%clk
0:00:56.4]} 17. Bh3 {[%clk 0:02:02.2]} 17... Rh8 {[%clk 0:00:46.2]} 18. f3
{[%clk 0:01:55.2]} 18... Ne5 {[%clk 0:00:39.9]} 19. Kf2 {[%clk 0:01:52.5]} 19...
Bxh3 {[%clk 0:00:37.6]} 20. Rxh3 {[%clk 0:01:52.1]} 20... Qd7 {[%clk 0:00:38.1]}
21. Nf4 {[%clk 0:01:50.4]} 21... g5 {[%clk 0:00:35.8]} 22. Ne6+ {[%clk
0:01:50.3]} 22... fxe6 {[%clk 0:00:35]} 23. Qxg5+ {[%clk 0:01:51.2]} 23... Kf7
{[%clk 0:00:34]} 24. Rh4 {[%clk 0:01:47.8]} 24... Rbg8 {[%clk 0:00:28.3]} 25.
Qf4+ {[%clk 0:01:16.1]} 25... Ke8 {[%clk 0:00:26.5]} 26. Qe4 {[%clk 0:01:17]}
26... exd5 {[%clk 0:00:17]} 27. Qe2 {[%clk 0:01:16.6]} 27... Rf8 {[%clk
0:00:15.7]} 28. f4 {[%clk 0:01:14.8]} 28... Kd8 {[%clk 0:00:13.2]} 29. Re1
{[%clk 0:01:14]} 29... Nc6 {[%clk 0:00:13.1]} 30. c3 {[%clk 0:01:08.2]} 30...
bxc3 {[%clk 0:00:13]} 31. bxc3 {[%clk 0:01:09.1]} 31... Kc7 {[%clk 0:00:12.7]}
32. Qf3 {[%clk 0:01:09]} 32... Qf5 {[%clk 0:00:09.6]} 33. h6 {[%clk 0:01:06.3]}
33... d4 {[%clk 0:00:08.2]} 34. Rh5 {[%clk 0:01:06.4]} 34... Qf7 {[%clk
0:00:07.6]} 35. c4 {[%clk 0:01:05.4]} 35... e5 {[%clk 0:00:06.6]} 36. f5 {[%clk
0:01:01.6]} 36... Ne7 {[%clk 0:00:04.8]} 37. g4 {[%clk 0:01:00.4]} 37... Ng6
{[%clk 0:00:03.5]} 38. Rb1 {[%clk 0:00:57.2]} 38... Rb8 {[%clk 0:00:01.7]} 39.
Rxb8 {[%clk 0:00:54.7]} 39... Rxb8 {[%clk 0:00:02.6]} 40. fxg6 {[%clk
0:00:53.3]} 40... Qxg6 {[%clk 0:00:03.3]} 41. Qf5 {[%clk 0:00:49.7]} 41... Rb2+
{[%clk 0:00:03.1]} 42. Kf3 {[%clk 0:00:49.8]} 42... Qxf5+ {[%clk 0:00:03.1]} 43.
Rxf5 {[%clk 0:00:48]} 43... Rxa2 {[%clk 0:00:03.7]} 44. Rf7+ {[%clk 0:00:48.7]}
44... Kc6 {[%clk 0:00:04.2]} 45. Rxh7 {[%clk 0:00:49.6]} 45... Rh2 {[%clk
0:00:04.5]} 46. g5 {[%clk 0:00:48]} 46... a5 {[%clk 0:00:05]} 47. g6 {[%clk
0:00:47.6]} 47... a4 {[%clk 0:00:04.8]} 48. g7 {[%clk 0:00:47.9]} 48... Rh3+
{[%clk 0:00:04.1]} 49. Kg2 {[%clk 0:00:47.4]} 49... a3 {[%clk 0:00:01.9]} 1-0